Cogmind - Beta 16 @@@ ROGUE MODE // 2025.11.13 @ 20:43:58 Player: Palikka Result: Destroyed by CH-NUU(R) with Subdweller Beam Cannon Performance ------------- Evolutions (0) 0 Regions Visited (2) 400 Robots Destroyed (28) 140 Value Destroyed (554) 554 Prototype IDs (2) 40 Alien Tech Used (0) 0 Bonus (0) 0 TOTAL SCORE: 1134 Bonus ------- None Cogmind --------- Core Integrity 0/250 Matter 251/300 Energy 229/250 System Corruption 0% Temperature Cool (9) Movement Rolling (130) Ox2 Location -10/Subcaves Parts ------- > --- POWER (1) -------- Ion Engine > --- PROPULSION (2) --- Light Treads Compact Wheel > --- UTILITY (2) ------ Large Storage Unit > --- WEAPON (2) ------- Subdweller Beam Cannon Subdweller Machine Gun > --- INVENTORY (15) --- Light Ion Engine Light Nuclear Core Spiked Treads Improved Heat Sink Improved Heat Sink High-capacity Matter Pod (200) Signal Interpreter Signal Interpreter Improved Terrain Scanner Seismic Detector Seismic Detector Seismic Detector Beam Cannon Light Cannon Peak State ------------ > --- POWER ------------ Ion Engine > --- PROPULSION ------- Light Treads Compact Wheel > --- UTILITY ---------- Large Storage Unit Light Armor Plating > --- WEAPON ----------- Assault Rifle Subdweller Machine Gun > --- INVENTORY -------- Ion Engine Light Ion Engine Light Ion Engine Light Nuclear Core Improved Heat Sink Improved Heat Sink High-capacity Matter Pod Signal Interpreter Signal Interpreter Improved Terrain Scanner Seismic Detector Seismic Detector Seismic Detector Beam Cannon Light Cannon [Rating: 10] Favorites ----------- Power Ion Engine Engine Ion Engine Propulsion Light Treads Treads Light Treads Wheel Compact Wheel Utility Large Storage Unit Device Seismic Detector Storage Large Storage Unit Protection Light Armor Plating Weapon Assault Rifle Energy Cannon Subdweller Beam Cannon Ballistic Gun Assault Rifle Ballistic Cannon Light Cannon Build | -11 -10 -10 ------- Run | Yrd Mat Sub Slots Evolved . | . . . Power . | . . . Propulsion . | . . . Utility . | . . . Weapon . | . . . Parts Attached 20 | 7 11 2 Power 6 | 1 5 . Engine 6 | 1 5 . Core . | . . . Reactor . | . . . Propulsion 4 | 2 2 . Treads 3 | 2 1 . Leg . | . . . Wheel 1 | . 1 . Hover . | . . . Flight . | . . . Utility 4 | 2 2 . Device 1 | 1 . . Storage 2 | 1 1 . Processor . | . . . Hackware . | . . . Protection 1 | . 1 . Artifact . | . . . Weapon 6 | 2 2 2 Energy Gun . | . . . Energy Cannon 1 | . . 1 Ballistic Gun 4 | 2 1 1 Ballistic Cannon 1 | . 1 . Launcher . | . . . Special Weapon . | . . . Impact Weapon . | . . . Slashing Weapon . | . . . Piercing Weapon . | . . . Special Melee Weapon . | . . . Unidentified Prototypes . | . . . Parts Lost 6 | . 4 2 Power . | . . . Propulsion 2 | . 2 . Utility 1 | . . 1 Weapon 3 | . 2 1 Highest Loss Streak 3 | . 3 2 To Critical Strikes . | . . . Average Backups 9 | 2 8 14 Power 2 | . 2 2 Propulsion . | . . . Utility 4 | . 4 9 Weapon 1 | . 1 2 Tool/Special . | . . . Unused Backups 15 | . 2 13 Power 4 | . 2 2 Propulsion 1 | . . 1 Utility 9 | . . 9 Weapon 1 | . . 1 Tool/Special . | . . . Average Slot Usage (%) 99 | . 99 99 Engine 14 | . 14 14 Treads 19 | . 21 14 Wheel 8 | . 6 14 Device 3 | . 4 . Storage 14 | . 14 14 Protection 9 | . 9 13 Ballistic Gun 21 | . 20 22 Ballistic Cannon 6 | . 6 4 Peak Build Rating 10 | 7 9 10 Average Rating 8 | 5 7 9 On Entrance 5 | . 7 9 Avg Prop Armor Cover (%) 9 | . 9 9 Naked Turns . | . . . Heaviest Build 34 | 13 33 34 Greatest Support 40 | 40 40 16 Greatest Overweight (x) 2 | . 2 2 Average Overweight (x) 1 | . 1 1 Largest Inventory Capacity 15 | 8 15 15 Average Capacity 12 | 7 12 15 Most Carried 15 | 4 14 15 Average Carried 9 | 2 8 14 Final Capacity 15 | 8 15 15 Final Carried 14 | 4 14 14 Class Distribution -------------------- 100% | Mutant Dominant Class ---------------- Mutant | -10/Materials Mutant | -10/Subcaves Resources | -11 -10 -10 ----------- Run | Yrd Mat Sub Matter Collected 1167 | 306 841 20 Remotely . | . . . Salvage Created 973 | 146 813 14 Parts 61 | 8 51 2 Haulers Intercepted 2 | . 2 . Recyclers Shooed 3 | . 3 . Parts Field Recycled . | . . . Retrieved Matter . | . . . Parts Self-Destructed . | . . . Prevented . | . . . Parts Restored . | . . . Kills | -11 -10 -10 ------- Run | Yrd Mat Sub Combat Hostiles Destroyed 18 | . 17 1 Guns 17 | . 16 1 Cannons 1 | . 1 . Classes Destroyed 8 | 2 5 1 Worker 2 | . 2 . Tunneler 2 | 2 . . Hauler 2 | . 2 . Recycler 3 | 1 2 . Watcher 1 | . 1 . Swarmer 6 | . 6 . Grunt 11 | . 11 . Subdweller 1 | . . 1 Best Kill Streak 4 | 3 4 1 Combat Bots Only 3 | . 3 1 Max Kills in Single Turn 1 | 1 1 1 Gunslinging . | . . . Exploded . | . . . Melee . | . . . Uniques/NPCs Destroyed . | . . . Combat | -11 -10 -10 -------- Run | Yrd Mat Sub Hostile Shots Fired 135 | . 105 30 Missed 35 | . 27 8 Hits 100 | . 78 22 Projectile 100 | . 78 22 Critical Strikes 2 | . 1 1 Damage Taken 1405 | . 897 508 Core 273 | . 99 174 Absorbed by Shields . | . . . Regen/Repaired (Parts) 171 | . 171 . Core Remaining (%) 100 | 100 . . Volleys Fired 102 | 6 85 11 Largest 2 | 2 2 2 Hottest 110 | 40 50 110 Shots Fired 202 | 12 169 21 Gun 187 | 12 155 20 Cannon 15 | . 14 1 Launcher . | . . . Special . | . . . Kinetic 201 | 12 169 20 Thermal 1 | . . 1 Explosive . | . . . Electromagnetic . | . . . Robot Hit Streak 14 | 5 11 14 Robot Miss Streak 4 | 1 4 1 Penetration Max . | . . . Secondary Targets 4 | . 4 . Max Gunslinging Chain 1 | . 1 . Shots Hit Robots 138 | 9 110 19 Core Hits 46 | 4 40 2 Critical Kills . | . . . Critical Parts Destroyed 1 | . 1 . Critical Strikes 2 | . 2 . Destroy 1 | . 1 . Blast 1 | . 1 . Melee Attacks . | . . . Impact . | . . . Slashing . | . . . Piercing . | . . . Sneak Attacks . | . . . Combat Hostiles . | . . . Follow-up Attacks . | . . . Damage Inflicted 1943 | 108 1484 351 Guns 1775 | 108 1344 323 Cannons 168 | . 140 28 Explosions . | . . . Melee . | . . . Ramming . | . . . Kinetic 1915 | 108 1484 323 Thermal 28 | . . 28 Explosive . | . . . Electromagnetic . | . . . Impact . | . . . Slashing . | . . . Piercing . | . . . Highest Corruption . | . . . Average Corruption . | . . . Corruption Purged . | . . . Corruption Blocked . | . . . Overload Shots . | . . . Overflow Damage . | . . . Projectiles . | . . . Explosions . | . . . Melee . | . . . Knockbacks 3 | . 3 . Impact . | . . . Kinetic 3 | . 3 . Secondary . | . . . Self-Inflicted Damage . | . . . Shots . | . . . Rammed . | . . . Targets Rammed . | . . . Kicked . | . . . Crushed . | . . . Highest Temperature 23 | . 23 . Average Temperature 8 | . 8 . Received Heat Transfer 534 | . 375 159 Siege Activations . | . . . Martial Activations . | . . . Shielding Activations . | . . . Robots Disrupted . | . . . Combat Hostiles . | . . . Robots Corrupted . | . . . Combat Hostiles . | . . . Parts Fried . | . . . Impact Corruptions . | . . . Robots Melted . | . . . Combat Hostiles . | . . . Parts Melted . | . . . Heat Transferred 37 | . . 37 Parts Sabotaged . | . . . Parts Stolen . | . . . Parts Stripped . | . . . Power Chain Reactions . | . . . Alert | -11 -10 -10 ------- Run | Yrd Mat Sub Maximum Alert Level . | . . . Low Security (%) 100 | 100 100 . Level 1 . | . . . Level 2 . | . . . Level 3 . | . . . Level 4 . | . . . Level 5 . | . . . High Security . | . . . Max Security . | . . . Peak Influence 83 | 15 83 . Initial 3 | . 3 . Average 27 | 2 28 . Influence Increases 474 | 15 459 . Destroy 0b10 Robot/C 340 | . 340 . Destroy 0b10 Robot/NC 50 | 15 35 . Destroy Leader 66 | . 66 . Successful Hack 16 | . 16 . Destroy Structure 2 | . 2 . Influence Decreases 474 | 10 464 . Entered New Map 2 | . 2 . Time Decay 432 | 10 422 . Lost Part 40 | . 40 . Squads Dispatched 2 | . 2 . Investigation 1 | . 1 . Extermination . | . . . Reinforcement 1 | . 1 . Assault . | . . . Garrison . | . . . Intercept . | . . . Searches Triggered . | . . . Construction Impeded . | . . . Haulers Reinforced . | . . . Active Scanning Responses . | . . . Cargo Convoy Interrupts . | . . . Stealth | -11 -10 -10 --------- Run | Yrd Mat Sub Distress Signals 1 | . 1 . Communications Jammed . | . . . Distress Signals . | . . . Times Spotted 28 | . 24 4 Peak Tracking Total 4 | . 4 2 Tactical Retreats . | . . . Traps | -11 -10 -10 ------- Run | Yrd Mat Sub Traps Triggered 2 | . 2 . Indirectly . | . . . Trap Hack Attempts . | . . . Triggered . | . . . Disarmed . | . . . Reprogrammed . | . . . Reused . | . . . Traps Extracted . | . . . Installed . | . . . Triggered . | . . . Machines | -11 -10 -10 ---------- Run | Yrd Mat Sub Machines Disabled . | . . . Max in Single Turn . | . . . Machines Repaired . | . . . Machines Dismantled . | . . . Machines Sabotaged . | . . . Overloaded Fab Kills . | . . . Hacking | -11 -10 -10 --------- Run | Yrd Mat Sub Machines Accessed 8 | . 8 . Terminals 6 | . 6 . Fabricators . | . . . Repair Stations 1 | . 1 . Recycling Units 1 | . 1 . Scanalyzers . | . . . Garrison Access . | . . . Total Hacks 22 | . 22 . Successful 15 | . 15 . Failed 7 | . 7 . Catastrophic 1 | . 1 . Database Lockouts . | . . . Manual 7 | . 7 . Terminals 15 | . 15 . Fabricators . | . . . Repair Stations 6 | . 6 . Recycling Units 1 | . 1 . Scanalyzers . | . . . Garrison Access . | . . . Terminal Hacks 6 | . 6 . Robot Analysis 1 | . 1 . Prototype ID Bank 1 | . 1 . Alert Level 1 | . 1 . Locate Traps 1 | . 1 . Registered Components 1 | . 1 . Zone Layout 1 | . 1 . Fabricator Hacks . | . . . Repair Station Hacks 4 | . 4 . Scan Component 2 | . 2 . Repair 2 | . 2 . Recycling Unit Hacks 1 | . 1 . Report Inventory 1 | . 1 . Scanalyzer . | . . . Garrison Access Hacks . | . . . Unauthorized Hacks 4 | . 4 . Terminals 4 | . 4 . Track 2 | . 2 . Botnet 2 | . 2 . Fabricators . | . . . Repair Stations . | . . . Recycling Units . | . . . Scanalyzers . | . . . Garrison Access . | . . . Data Cores Recovered . | . . . Used . | . . . Hacking Detections 5 | . 5 . Full Trace Events . | . . . Feedback Events . | . . . Feedback Blocked . | . . . Robot Schematics Acquired . | . . . Robots Built . | . . . Authchips . | . . . Time . | . . . Total Robot Build Rating . | . . . Part Schematics Acquired . | . . . Parts Built . | . . . Authchips . | . . . Time . | . . . Total Part Build Rating . | . . . Part Studies Acquired . | . . . Parts Repaired 2 | . 2 . Time 52 | . 52 . Parts Recycled . | . . . Recycled Matter . | . . . Retrieved Matter . | . . . Retrieved Components . | . . . Parts Scanalyzed . | . . . Part Schematics Acquired . | . . . Parts Damaged . | . . . Bothacking | -11 -10 -10 ------------ Run | Yrd Mat Sub Used RIF Installer . | . . . Robots Hacked . | . . . Non-combat . | . . . Combat . | . . . Robot Hacks Applied . | . . . Relay Couplers Released . | . . . Fabnet Peak Effective % . | . . . Robots Rewired . | . . . Allies Hacked . | . . . Hacks Repelled . | . . . Allies | -11 -10 -10 -------- Run | Yrd Mat Sub Total Allies . | . . . Largest Group . | . . . Highest-Rated Group . | . . . Highest-Rated Ally . | . . . Total Orders . | . . . Ally Attacks . | . . . Total Damage . | . . . Kills . | . . . Allies Corrupted . | . . . Allies Melted . | . . . Intel | -11 -10 -10 ------- Run | Yrd Mat Sub Active Infowar (turns) 490 | 19 471 . Seismic 490 | 19 471 . Robot Analysis Total 1 | . 1 . Derelict Logs Recovered 1 | . . 1 Drone Launches . | . . . Drone Recoveries . | . . . Exploration | -11 -10 -10 ------------- Run | Yrd Mat Sub Turns Passed 1870 | 98 1456 316 Spaces Moved 987 | 45 747 195 Core 5 | 5 . . Treads 345 | 40 305 . Legs . | . . . Wheels 637 | . 442 195 Hover . | . . . Flight . | . . . Fastest Speed 50 | 50 115 115 Average Speed 139 | 147 141 129 Slowest Speed 160 | 160 160 130 Overloaded Moves . | . . . Propulsion Burnouts . | . . . Robots Hopped . | . . . Potential Cave-ins . | . . . Cave-ins Triggered . | . . . Exploration Rate (%) 39 | 5 96 16 Regions Visited 2 Branch Regions 1 Pre-discovered Areas 1 | . . 1 Known Exits Taken . | . . . Unknown Exits Taken 2 | 1 1 . Scrap Searched . | . . . Spaces Dug . | . . . Terrain Destroyed . | . . . Melee . | . . . Projectile . | . . . AOE . | . . . Terrain Rammed . | . . . Walls Destroyed . | . . . Machines Disabled . | . . . Actions | -11 -10 -10 --------- Run | Yrd Mat Sub Total 1276 | 62 975 239 Wait 132 | . 106 26 Move 985 | 44 746 195 Hop . | . . . Pick Up 22 | 5 15 2 Fast Attach 9 | 6 2 1 Attach 6 | 1 4 1 Detach 1 | . . 1 Swap 9 | . 9 . Drop 10 | . 8 2 Fire 102 | 6 85 11 Melee . | . . . Ram . | . . . Kick . | . . . Crush . | . . . Escape Stasis . | . . . Rewire . | . . . Trap . | . . . Miscellaneous . | . . . Route ------- -11/Scrapyard -10/Materials (discovered 5 exits: [*Mat x3] / [*Min] / [*Sub]) -10/Subcaves (discovered 1 exit: [Scr]) History --------- Turn | Location | Event 26 | -11/Scrapyard | Discovered new exit (range 14) 99 | -11/Scrapyard | Entered Materials 100 | -10/Materials | Met a group of wandering Federalists 153 | -10/Materials | Discovered new exit (range 8) 314 | -10/Materials | Build established: Mutant 358 | -10/Materials | Discovered new exit (range 16) 540 | -10/Materials | Discovered new exit (range 16) 873 | -10/Materials | Lost 3 parts (2n1w) 934 | -10/Materials | Discovered new exit (range 7) 1364 | -10/Materials | Discovered new exit (range 10) 1480 | -10/Materials | Repaired Lgt. Armor Plating 1508 | -10/Materials | Repaired Assault Rifle 1555 | -10/Materials | Entered Subcaves 1556 | -10/Subcaves | Continued accompanying wandering Federalists (5) 1556 | -10/Subcaves | Approached by a straggling Scientist 1559 | -10/Subcaves | Learned location of Zion (-7) 1847 | -10/Subcaves | Core integrity fell below 50% 1854 | -10/Subcaves | Core integrity fell below 20% 1871 | -10/Subcaves | Destroyed by CH-NUU(R) with Subdweller Beam Cannon Last Messages --------------- 01659_ Dropped Lgt. Ion Engine. 01659_ Acquired Sub. Beam Cannon. 01676_ Acquired 9 matter. 01679_ Subatomizers dissect the Aluminum Leg. 01680_ Acquired 1 matter. 01703_ A derelict emerges from the shadows: "Hey wait up! Finally some friendlies. We were scared out of our wits watching Subs pass by here several times." FG-MUP(c): "I think it's somewhere south of here" 01718_ T9-ZNT(O) collects matter. 01725_ T9-ZNT(O) puts together Spk. Treads. 01750_ Dropped Ion Engine. 01751_ Acquired Spk. Treads. FG-MUP(c): "I think it's somewhere south of here" 01765_ T9-ZNT(O) puts together Flamer. FG-MUP(c): "I think it's somewhere south of here" 01864_ Destroyed Scrap Shield. 01865_ Assault Rifle destroyed. 01865_ Lgt. Armor Plating destroyed. 01867_ BU-1SM(R) destroyed. Map ----- +----------------------------------------------------+ | ?????????????????????????????????????????????????? | | ?????????????????????????????????????????????????? | | ?????????????????????????????????????????????????? | | ?????????????????????????????????????????????????? | | ?????????????????????????????????????????????????? | | ?????????????????????????????????????????????????? | | ?????????????????????????????????????????????????? | | ?????????????????????????????????????????????????? | | ?????????????????????????????????????????????????? | | ?????????????????????????????????????????????????? | | ?????????????????????????????????????????????????? | | ?????????????????????????????????????????????????? | | ?????????????????????????????????????????????????? | | ?????????????????????????##?###????????????????### | | ????????????????????????? ## ##???????######## # | | ?????????????????????????? #???????# ? | | ??????????????????????? #???????# #?# | | ??????????????????????? " #??????## #??# | | ???????????????????????# """ ##????## #### | | ???????????????????????#""""" ""#????# % | | ???????????????????????#"""" ""#????# | | ???????????????? "#####""" "#??#### | | ????????????????? " "R[ #### ## | | ???????????????????""""%! ## | | ???????????????????????; ####### # | | ???????????????????????##@ ##????## | | ????????????????????????## " " ########### | | ?????????????????????????###"""#??# | | ???????????????????????????#""" #?## #### | | ???????????????????????????## ##??## #### | | ????????????????????????????####????# | | ????????????????????????????????????## | | ?????????????????????????????????????## | | | ??????????????????????????????????????##### ### | | ??????????????????????????????????????????# ### | | ??????????????????????????????????????????# ## | | ??????????????????????????????????????????# | | ?????????????????????????????????????????## | | ??????????????????????????????????#?????## | | ??????????????????????????????????# ## | | ??????????????????????????????????# * | | ???????????????????????????????????# | | ???????????????????????????????????# | | ???????????????????????????????????## ######## | | ????????????????????????????????????# ???????## | | ???????????????????????????????????# ????????# | | ???????????????????????????????????#### ????????## | | ??????????????????????????????????????#????????## | | ???????????????????????????????????????????????#"" | | ??????????????????????????????????????????????# "" | +----------------------------------------------------+ Best States ------------- Heat Dissipation 25 Energy Generation 10 Energy Capacity 250 Matter Stores 300 Matter Capacity 300 Sight Range 16 Terrain Scan Density 10 Armor Coverage 150 Evasion (%) 40 Recoil Reduction 2 Item Schematics ----------------- None Robot Schematics ------------------ None Fabricated ------------ Nothing Repaired ---------- Lgt. Armor Plating | 5% | -10/Materials Assault Rifle | 14% | -10/Materials Studied --------- None Alien Tech Used ----------------- None Achievements -------------- Strength In Numbers Challenges ------------ None Game ------ Seed SpikedGunParser Manual? 0 Play Time 00:13:39 Cumulative 433.3 hours Start 2025.11.13 @ 20:32:07 End 2025.11.13 @ 20:43:58 Sessions 1 Manual Loads 0 Difficulty Rogue Special Mode None Game No. 470 Rogue 470 Adventurer 0 Explorer 0 Win Type - Total 39 Types 29/0/7/3/0/0/0/0/0/0 Lore% 80 Gallery% 71 Achievement% 43 Wizard Run 0 Options --------- Layout 0 ASCII 0 Keyboard 1 Movement Numpad Keybinds 0 Fullscreen 1 Font 24/Smallcaps Map View 76x50 Zoom Use 0% Tactical HUD 1 Map Filters NONE Filters NONE Steam 1 RUN: cbd80688-5ed1-4466-85a7-e90b506c1af9